[Event "Titled Tuesday Blitz February 22 Early 2022"]
[White "Abramov, Alexander"]
[Black "Dew, Brian"]
[WhiteFideId "4174089"]
[BlackFideId "6000495"]
[WhiteElo "2094"]
[BlackElo "2118"]
[Result "0-1"]
[Round "08"]
[TimeControl "180+1"]
[Date "2022.02.22"]
[WhiteClock "0:00:01"]
[BlackClock "0:00:03"]

1. e4 {[%clk 0:03:00]}  e5 {[%clk 0:02:59]} 2. Nf3 {[%clk 0:03:00]}  Nc6 {[%clk 0:02:59]} 3. Bb5 {[%clk 0:03:00]}  Nge7 {[%clk 0:02:59]} 4. d4 {[%clk 0:02:39]}  exd4 {[%clk 0:02:59]} 5. Nxd4 {[%clk 0:02:38]}  g6 {[%clk 0:02:49]} 6. Nc3 {[%clk 0:02:37]}  Bg7 {[%clk 0:02:49]} 7. Be3 {[%clk 0:02:30]}  O-O {[%clk 0:02:47]} 8. Qd2 {[%clk 0:02:30]}  Re8 {[%clk 0:02:25]} 9. O-O-O {[%clk 0:02:28]}  d6 {[%clk 0:02:17]} 10. h4 {[%clk 0:02:19]}  h5 {[%clk 0:02:04]} 11. f3 {[%clk 0:02:19]}  a6 {[%clk 0:02:03]} 12. Bc4 {[%clk 0:01:50]}  Ne5 {[%clk 0:01:18]} 13. Bb3 {[%clk 0:01:47]}  c5 {[%clk 0:01:15]} 14. Nde2 {[%clk 0:01:40]}  c4 {[%clk 0:01:15]} 15. f4 {[%clk 0:01:37]}  cxb3 {[%clk 0:01:11]} 16. fxe5 {[%clk 0:01:36]}  bxa2 {[%clk 0:01:08]} 17. Nxa2 {[%clk 0:01:37]}  Bxe5 {[%clk 0:01:06]} 18. Bd4 {[%clk 0:01:27]}  Nc6 {[%clk 0:00:57]} 19. Bc3 {[%clk 0:01:16]}  Bg4 {[%clk 0:00:54]} 20. Kb1 {[%clk 0:00:42]}  a5 {[%clk 0:00:40]} 21. Qe3 {[%clk 0:00:24]}  Qf6 {[%clk 0:00:19]} 22. Rdf1 {[%clk 0:00:18]}  Qg7 {[%clk 0:00:18]} 23. Nec1 {[%clk 0:00:10]}  b5 {[%clk 0:00:17]} 24. Qb6 {[%clk 0:00:09]}  Bxc3 {[%clk 0:00:08]} 25. Nxc3 {[%clk 0:00:08]}  Nd4 {[%clk 0:00:07]} 26. Nd5 {[%clk 0:00:07]}  b4 {[%clk 0:00:05]} 27. Nc7 {[%clk 0:00:03]}  Rab8 {[%clk 0:00:04]} 28. Qxd6 {[%clk 0:00:03]}  Red8 {[%clk 0:00:04]} 29. Qc5 {[%clk 0:00:02]}  Ne6 {[%clk 0:00:03]} 30. Nxe6 {[%clk 0:00:02]}  Bxe6 {[%clk 0:00:04]} 31. Nd3 {[%clk 0:00:01]}  b3 {[%clk 0:00:03]} 32. c3 {[%clk 0:00:01]}  Rxd3 {[%clk 0:00:03]} 33. Re1 {[%clk 0:00:01]}  Rd2 {[%clk 0:00:03]} 0-1


[Site "https://www.chess.com"]

[Event "Titled Tuesday Blitz February 22 Early 2022"]
[White "Barp, Alberto"]
[Black "Srihari L R"]
[WhiteFideId "872555"]
[BlackFideId "46617116"]
[WhiteElo "2578"]
[BlackElo "2779"]
[Result "0-1"]
[Round "08"]
[TimeControl "180+1"]
[Date "2022.02.22"]
[WhiteClock "0:00:02"]
[BlackClock "0:00:22"]

1. d4 {[%clk 0:03:00]}  d6 {[%clk 0:02:59]} 2. Bg5 {[%clk 0:02:53]}  Nd7 {[%clk 0:02:56]} 3. Nd2 {[%clk 0:02:49]}  Ngf6 {[%clk 0:02:56]} 4. c3 {[%clk 0:02:49]}  e5 {[%clk 0:02:56]} 5. e3 {[%clk 0:02:48]}  Be7 {[%clk 0:02:56]} 6. Bd3 {[%clk 0:02:48]}  O-O {[%clk 0:02:55]} 7. Qc2 {[%clk 0:02:47]}  h6 {[%clk 0:02:54]} 8. Bh4 {[%clk 0:02:47]}  Re8 {[%clk 0:02:54]} 9. Ne2 {[%clk 0:02:46]}  c6 {[%clk 0:02:39]} 10. O-O {[%clk 0:02:30]}  d5 {[%clk 0:02:31]} 11. Bf5 {[%clk 0:02:09]}  e4 {[%clk 0:02:28]} 12. f3 {[%clk 0:01:54]}  exf3 {[%clk 0:02:27]} 13. gxf3 {[%clk 0:01:55]}  Nh5 {[%clk 0:02:19]} 14. Bf2 {[%clk 0:01:49]}  Bh4 {[%clk 0:02:15]} 15. e4 {[%clk 0:01:38]}  Bxf2+ {[%clk 0:02:00]} 16. Rxf2 {[%clk 0:01:37]}  Nf8 {[%clk 0:01:55]} 17. Bxc8 {[%clk 0:01:31]}  Rxc8 {[%clk 0:01:55]} 18. e5 {[%clk 0:01:30]}  Qg5+ {[%clk 0:01:34]} 19. Kh1 {[%clk 0:01:26]}  Ne6 {[%clk 0:01:28]} 20. f4 {[%clk 0:00:38]}  Nhxf4 {[%clk 0:01:01]} 21. Nxf4 {[%clk 0:00:39]}  Nxf4 {[%clk 0:01:00]} 22. Rg1 {[%clk 0:00:37]}  Qh4 {[%clk 0:00:51]} 23. Nf3 {[%clk 0:00:37]}  Qh5 {[%clk 0:00:46]} 24. Qd2 {[%clk 0:00:27]}  Nh3 {[%clk 0:00:45]} 25. Rg3 {[%clk 0:00:16]}  Nxf2+ {[%clk 0:00:43]} 26. Qxf2 {[%clk 0:00:17]}  Re6 {[%clk 0:00:44]} 27. Nh4 {[%clk 0:00:14]}  Kh8 {[%clk 0:00:35]} 28. Rf3 {[%clk 0:00:10]}  Rf8 {[%clk 0:00:30]} 29. Rf5 {[%clk 0:00:10]}  Qd1+ {[%clk 0:00:28]} 30. Kg2 {[%clk 0:00:11]}  Qg4+ {[%clk 0:00:28]} 31. Kh1 {[%clk 0:00:11]}  Kg8 {[%clk 0:00:28]} 32. Rf4 {[%clk 0:00:11]}  Qd1+ {[%clk 0:00:28]} 33. Kg2 {[%clk 0:00:11]}  g5 {[%clk 0:00:27]} 34. Qg3 {[%clk 0:00:02]}  Kh8 {[%clk 0:00:22]} 0-1


[Site "https://www.chess.com"]

[Event "Titled Tuesday Blitz February 22 Early 2022"]
[White "Barrientos, Sergio E"]
[Black "Do Nascimento,Christian Almeida"]
[WhiteFideId "4401824"]
[BlackFideId "2143801"]
[WhiteElo "2441"]
[BlackElo "2108"]
[Result "1-0"]
[Round "08"]
[TimeControl "180+1"]
[Date "2022.02.22"]
[WhiteClock "0:00:20"]
[BlackClock "0:00:01"]

1. d4 {[%clk 0:02:55]}  c5 {[%clk 0:02:57]} 2. e4 {[%clk 0:02:54]}  cxd4 {[%clk 0:02:54]} 3. Nf3 {[%clk 0:02:54]}  Nc6 {[%clk 0:02:52]} 4. Nxd4 {[%clk 0:02:52]}  g6 {[%clk 0:02:52]} 5. Nc3 {[%clk 0:02:50]}  Bg7 {[%clk 0:02:51]} 6. Be3 {[%clk 0:02:50]}  Nf6 {[%clk 0:02:51]} 7. Bc4 {[%clk 0:02:50]}  O-O {[%clk 0:02:51]} 8. Bb3 {[%clk 0:02:49]}  Qa5 {[%clk 0:02:40]} 9. O-O {[%clk 0:02:38]}  d6 {[%clk 0:02:37]} 10. h3 {[%clk 0:02:35]}  Bd7 {[%clk 0:02:33]} 11. Re1 {[%clk 0:02:18]}  Rac8 {[%clk 0:02:33]} 12. Nf3 {[%clk 0:02:10]}  a6 {[%clk 0:02:26]} 13. Nd5 {[%clk 0:02:05]}  Nxd5 {[%clk 0:02:20]} 14. exd5 {[%clk 0:02:05]}  Ne5 {[%clk 0:02:15]} 15. Nxe5 {[%clk 0:02:04]}  Bxe5 {[%clk 0:02:16]} 16. Bd4 {[%clk 0:02:01]}  Qc7 {[%clk 0:01:49]} 17. c3 {[%clk 0:01:51]}  Rfe8 {[%clk 0:01:45]} 18. Qf3 {[%clk 0:01:47]}  Bg7 {[%clk 0:01:31]} 19. Re3 {[%clk 0:01:42]}  Bxd4 {[%clk 0:01:28]} 20. cxd4 {[%clk 0:01:43]}  Bb5 {[%clk 0:01:26]} 21. Rae1 {[%clk 0:01:39]}  Qd7 {[%clk 0:01:17]} 22. h4 {[%clk 0:01:25]}  Bc4 {[%clk 0:01:09]} 23. h5 {[%clk 0:01:25]}  Bxb3 {[%clk 0:01:08]} 24. axb3 {[%clk 0:01:26]}  Rc2 {[%clk 0:01:03]} 25. h6 {[%clk 0:01:05]}  Kf8 {[%clk 0:00:47]} 26. Qf4 {[%clk 0:00:52]}  Rxb2 {[%clk 0:00:36]} 27. Rf3 {[%clk 0:00:52]}  f6 {[%clk 0:00:31]} 28. Re6 {[%clk 0:00:50]}  Qd8 {[%clk 0:00:22]} 29. g4 {[%clk 0:00:24]}  Kg8 {[%clk 0:00:16]} 30. Rfe3 {[%clk 0:00:22]}  Rc2 {[%clk 0:00:13]} 31. Qxf6 {[%clk 0:00:19]}  exf6 {[%clk 0:00:10]} 32. Rxe8+ {[%clk 0:00:19]}  Qxe8 {[%clk 0:00:10]} 33. Rxe8+ {[%clk 0:00:20]}  Kf7 {[%clk 0:00:10]} 34. Rh8 {[%clk 0:00:20]}  g5 {[%clk 0:00:10]} 35. Rxh7+ {[%clk 0:00:21]}  Kg6 {[%clk 0:00:11]} 36. Rxb7 {[%clk 0:00:20]}  Kxh6 {[%clk 0:00:11]} 37. Rb6 {[%clk 0:00:20]}  Rd2 {[%clk 0:00:09]} 38. Rxd6 {[%clk 0:00:21]}  Kg6 {[%clk 0:00:09]} 39. Rxa6 {[%clk 0:00:20]}  Rxd4 {[%clk 0:00:10]} 40. d6 {[%clk 0:00:21]}  Rf4 {[%clk 0:00:10]} 41. Kf1 {[%clk 0:00:21]}  Rxg4 {[%clk 0:00:10]} 42. Rb6 {[%clk 0:00:21]}  Rd4 {[%clk 0:00:10]} 43. Ke2 {[%clk 0:00:21]}  Kf5 {[%clk 0:00:11]} 44. Ke3 {[%clk 0:00:22]}  Rd1 {[%clk 0:00:11]} 45. b4 {[%clk 0:00:21]}  Ke5 {[%clk 0:00:12]} 46. d7 {[%clk 0:00:22]}  Rxd7 {[%clk 0:00:12]} 47. Rb5+ {[%clk 0:00:22]}  Rd5 {[%clk 0:00:10]} 48. Rb8 {[%clk 0:00:22]}  f5 {[%clk 0:00:10]} 49. b5 {[%clk 0:00:21]}  Rc5 {[%clk 0:00:09]} 50. Kd3 {[%clk 0:00:21]}  Rd5+ {[%clk 0:00:09]} 51. Kc4 {[%clk 0:00:22]}  Rd1 {[%clk 0:00:09]} 52. b6 {[%clk 0:00:22]}  Kf4 {[%clk 0:00:07]} 53. Re8 {[%clk 0:00:20]}  Rb1 {[%clk 0:00:07]} 54. Kc5 {[%clk 0:00:19]}  Kf3 {[%clk 0:00:07]} 55. Re5 {[%clk 0:00:19]}  Kf4 {[%clk 0:00:06]} 56. Rd5 {[%clk 0:00:19]}  Ke4 {[%clk 0:00:06]} 57. Rd4+ {[%clk 0:00:19]}  Kf3 {[%clk 0:00:06]} 58. Rb4 {[%clk 0:00:20]}  Rc1+ {[%clk 0:00:06]} 59. Kd6 {[%clk 0:00:21]}  Rc8 {[%clk 0:00:05]} 60. Ke5 {[%clk 0:00:21]}  Rf8 {[%clk 0:00:05]} 61. b7 {[%clk 0:00:21]}  f4 {[%clk 0:00:05]} 62. b8=Q {[%clk 0:00:20]}  Rxb8 {[%clk 0:00:05]} 63. Rxb8 {[%clk 0:00:21]}  Kxf2 {[%clk 0:00:05]} 64. Ke4 {[%clk 0:00:22]}  Kg3 {[%clk 0:00:04]} 65. Rb3+ {[%clk 0:00:20]}  Kg2 {[%clk 0:00:04]} 66. Ra3 {[%clk 0:00:18]}  Kf2 {[%clk 0:00:03]} 67. Kf5 {[%clk 0:00:19]}  f3 {[%clk 0:00:01]} 68. Kg4 {[%clk 0:00:19]}  Kg2 {[%clk 0:00:01]} 69. Rxf3 {[%clk 0:00:20]} 1-0


[Site "https://www.chess.com"]

[Event "Titled Tuesday Blitz February 22 Early 2022"]
[White "Bazarov, Konstantin"]
[Black "Matveeva, Olga"]
[WhiteFideId "4137000"]
[BlackFideId "24107018"]
[WhiteElo "2079"]
[BlackElo "2083"]
[Result "1-0"]
[Round "08"]
[TimeControl "180+1"]
[Date "2022.02.22"]
[WhiteClock "0:00:37"]
[BlackClock "0:00:14"]

1. d3 {[%clk 0:02:40]}  e6 {[%clk 0:02:57]} 2. c3 {[%clk 0:02:41]}  d5 {[%clk 0:02:56]} 3. Nd2 {[%clk 0:02:42]}  Nf6 {[%clk 0:02:54]} 4. e4 {[%clk 0:02:43]}  c5 {[%clk 0:02:53]} 5. Be2 {[%clk 0:02:43]}  Be7 {[%clk 0:02:52]} 6. Ngf3 {[%clk 0:02:42]}  O-O {[%clk 0:02:51]} 7. O-O {[%clk 0:02:41]}  Nc6 {[%clk 0:02:50]} 8. Re1 {[%clk 0:02:41]}  b5 {[%clk 0:02:44]} 9. a4 {[%clk 0:02:39]}  b4 {[%clk 0:02:44]} 10. Qc2 {[%clk 0:02:37]}  a5 {[%clk 0:02:42]} 11. e5 {[%clk 0:02:35]}  Nd7 {[%clk 0:02:41]} 12. d4 {[%clk 0:02:35]}  Ba6 {[%clk 0:02:31]} 13. Bxa6 {[%clk 0:02:31]}  Rxa6 {[%clk 0:02:32]} 14. Nf1 {[%clk 0:02:31]}  Qb6 {[%clk 0:02:26]} 15. Be3 {[%clk 0:02:25]}  cxd4 {[%clk 0:02:23]} 16. cxd4 {[%clk 0:02:24]}  Rc8 {[%clk 0:02:22]} 17. Rec1 {[%clk 0:02:19]}  Raa8 {[%clk 0:02:21]} 18. Qd3 {[%clk 0:02:18]}  h6 {[%clk 0:02:15]} 19. N1d2 {[%clk 0:02:13]}  Qb7 {[%clk 0:02:09]} 20. Nb3 {[%clk 0:02:08]}  Nb6 {[%clk 0:02:01]} 21. Qb5 {[%clk 0:02:07]}  Rc7 {[%clk 0:01:34]} 22. Nfd2 {[%clk 0:01:59]}  Rac8 {[%clk 0:01:06]} 23. g3 {[%clk 0:01:36]}  Nd7 {[%clk 0:00:46]} 24. Qxb7 {[%clk 0:01:31]}  Rxb7 {[%clk 0:00:47]} 25. Nxa5 {[%clk 0:01:30]}  Rbc7 {[%clk 0:00:47]} 26. Nab3 {[%clk 0:01:22]}  Na7 {[%clk 0:00:38]} 27. Rxc7 {[%clk 0:01:18]}  Rxc7 {[%clk 0:00:38]} 28. Kf1 {[%clk 0:01:15]}  Kf8 {[%clk 0:00:36]} 29. Ke2 {[%clk 0:01:14]}  Nb6 {[%clk 0:00:35]} 30. Nc5 {[%clk 0:01:11]}  Bxc5 {[%clk 0:00:34]} 31. dxc5 {[%clk 0:01:10]}  Nc4 {[%clk 0:00:34]} 32. Nxc4 {[%clk 0:01:05]}  dxc4 {[%clk 0:00:34]} 33. Rc1 {[%clk 0:01:05]}  Nc6 {[%clk 0:00:28]} 34. Rxc4 {[%clk 0:01:04]}  Nxe5 {[%clk 0:00:24]} 35. Rxb4 {[%clk 0:01:03]}  Ke7 {[%clk 0:00:23]} 36. f4 {[%clk 0:00:58]}  Nc6 {[%clk 0:00:22]} 37. Rb5 {[%clk 0:00:50]}  Ra7 {[%clk 0:00:18]} 38. b3 {[%clk 0:00:48]}  Rd7 {[%clk 0:00:18]} 39. a5 {[%clk 0:00:42]}  Ra7 {[%clk 0:00:17]} 40. b4 {[%clk 0:00:41]}  Rd7 {[%clk 0:00:16]} 41. Rb6 {[%clk 0:00:40]}  Na7 {[%clk 0:00:14]} 42. b5 {[%clk 0:00:37]} 1-0


[Site "https://www.chess.com"]

[Event "Titled Tuesday Blitz February 22 Early 2022"]
[White "Begunov, Konstantin"]
[Black "Osiecki, Stanislaw"]
[WhiteFideId "4118510"]
[BlackFideId "1102990"]
[WhiteElo "2262"]
[BlackElo "2127"]
[Result "1-0"]
[Round "08"]
[TimeControl "180+1"]
[Date "2022.02.22"]
[WhiteClock "0:01:44"]
[BlackClock "0:00:50"]

1. d4 {[%clk 0:03:00]}  Nf6 {[%clk 0:02:59]} 2. c4 {[%clk 0:03:00]}  g6 {[%clk 0:02:59]} 3. f3 {[%clk 0:03:00]}  Bg7 {[%clk 0:03:00]} 4. e4 {[%clk 0:03:00]}  d6 {[%clk 0:03:00]} 5. Nc3 {[%clk 0:03:01]}  O-O {[%clk 0:03:00]} 6. Be3 {[%clk 0:03:01]}  e5 {[%clk 0:03:00]} 7. Nge2 {[%clk 0:03:01]}  Ne8 {[%clk 0:03:00]} 8. Qd2 {[%clk 0:03:01]}  Nc6 {[%clk 0:02:58]} 9. O-O-O {[%clk 0:03:00]}  Bd7 {[%clk 0:02:50]} 10. Kb1 {[%clk 0:02:59]}  a6 {[%clk 0:02:44]} 11. d5 {[%clk 0:02:59]}  Ne7 {[%clk 0:02:41]} 12. Nc1 {[%clk 0:02:58]}  Rb8 {[%clk 0:02:38]} 13. b4 {[%clk 0:02:57]}  f5 {[%clk 0:02:35]} 14. Nb3 {[%clk 0:02:55]}  f4 {[%clk 0:02:34]} 15. Bf2 {[%clk 0:02:55]}  b6 {[%clk 0:02:33]} 16. Ka1 {[%clk 0:02:52]}  g5 {[%clk 0:02:28]} 17. h3 {[%clk 0:02:52]}  Nf6 {[%clk 0:02:25]} 18. c5 {[%clk 0:02:51]}  bxc5 {[%clk 0:02:25]} 19. bxc5 {[%clk 0:02:51]}  dxc5 {[%clk 0:02:24]} 20. Bxa6 {[%clk 0:02:43]}  Ra8 {[%clk 0:02:20]} 21. Nxc5 {[%clk 0:02:42]}  Ne8 {[%clk 0:02:12]} 22. Rb1 {[%clk 0:02:38]}  Nd6 {[%clk 0:02:11]} 23. Rb4 {[%clk 0:02:26]}  Bc8 {[%clk 0:02:09]} 24. Bxc8 {[%clk 0:02:22]}  Qxc8 {[%clk 0:02:04]} 25. Rhb1 {[%clk 0:02:21]}  h5 {[%clk 0:01:45]} 26. Nb5 {[%clk 0:02:20]}  Ng6 {[%clk 0:01:30]} 27. Ne6 {[%clk 0:02:18]}  Rf7 {[%clk 0:01:28]} 28. Qc3 {[%clk 0:02:03]}  Qa6 {[%clk 0:01:13]} 29. R1b2 {[%clk 0:01:57]}  Rb8 {[%clk 0:01:04]} 30. Nbxc7 {[%clk 0:01:48]}  Rxb4 {[%clk 0:00:55]} 31. Nxa6 {[%clk 0:01:47]}  Rxb2 {[%clk 0:00:54]} 32. Kxb2 {[%clk 0:01:45]}  Rb7+ {[%clk 0:00:52]} 33. Ka1 {[%clk 0:01:45]}  Nb5 {[%clk 0:00:50]} 34. Qc8+ {[%clk 0:01:44]} 1-0


[Site "https://www.chess.com"]

[Event "Titled Tuesday Blitz February 22 Early 2022"]
[White "Berdychevskaya, Natasha"]
[Black "Bodnar, Nikolay"]
[WhiteFideId "4159322"]
[BlackFideId "14106469"]
[WhiteElo "1780"]
[BlackElo "2296"]
[Result "0-1"]
[Round "08"]
[TimeControl "180+1"]
[Date "2022.02.22"]
[WhiteClock "0:00:13"]
[BlackClock "0:00:17"]

1. d4 {[%clk 0:02:55]}  Nf6 {[%clk 0:00:56]} 2. Bf4 {[%clk 0:02:37]}  e6 {[%clk 0:00:55]} 3. e3 {[%clk 0:02:38]}  d5 {[%clk 0:00:56]} 4. Nf3 {[%clk 0:02:38]}  Bd6 {[%clk 0:00:57]} 5. Bg3 {[%clk 0:02:35]}  O-O {[%clk 0:00:57]} 6. Bd3 {[%clk 0:02:35]}  c5 {[%clk 0:00:58]} 7. c3 {[%clk 0:02:35]}  Qc7 {[%clk 0:00:58]} 8. Nbd2 {[%clk 0:02:17]}  Nbd7 {[%clk 0:00:58]} 9. O-O {[%clk 0:02:12]}  e5 {[%clk 0:00:58]} 10. dxe5 {[%clk 0:02:11]}  Nxe5 {[%clk 0:00:59]} 11. Nxe5 {[%clk 0:02:11]}  Bxe5 {[%clk 0:01:00]} 12. Nf3 {[%clk 0:02:02]}  Bxg3 {[%clk 0:01:00]} 13. hxg3 {[%clk 0:02:00]}  b6 {[%clk 0:01:00]} 14. Qc2 {[%clk 0:01:56]}  Bb7 {[%clk 0:01:00]} 15. Rad1 {[%clk 0:01:53]}  Rad8 {[%clk 0:01:00]} 16. Rfe1 {[%clk 0:01:48]}  Rfe8 {[%clk 0:00:59]} 17. c4 {[%clk 0:01:44]}  dxc4 {[%clk 0:00:56]} 18. Bxc4 {[%clk 0:01:43]}  Be4 {[%clk 0:00:56]} 19. Qb3 {[%clk 0:01:37]}  Bg6 {[%clk 0:00:43]} 20. Bb5 {[%clk 0:01:32]}  Rxd1 {[%clk 0:00:41]} 21. Rxd1 {[%clk 0:01:29]}  Rd8 {[%clk 0:00:41]} 22. Rxd8+ {[%clk 0:01:13]}  Qxd8 {[%clk 0:00:42]} 23. Ne5 {[%clk 0:01:10]}  Ne4 {[%clk 0:00:39]} 24. Bd3 {[%clk 0:01:00]}  Qf6 {[%clk 0:00:35]} 25. f4 {[%clk 0:00:55]}  Nxg3 {[%clk 0:00:31]} 26. Qd5 {[%clk 0:00:47]}  Qe7 {[%clk 0:00:19]} 27. e4 {[%clk 0:00:40]}  Nh5 {[%clk 0:00:16]} 28. Qa8+ {[%clk 0:00:36]}  Qf8 {[%clk 0:00:15]} 29. Qxf8+ {[%clk 0:00:36]}  Kxf8 {[%clk 0:00:16]} 30. Nxg6+ {[%clk 0:00:33]}  hxg6 {[%clk 0:00:16]} 31. f5 {[%clk 0:00:29]}  gxf5 {[%clk 0:00:15]} 32. exf5 {[%clk 0:00:29]}  Ke7 {[%clk 0:00:16]} 33. Kf2 {[%clk 0:00:27]}  Nf4 {[%clk 0:00:15]} 34. Be4 {[%clk 0:00:26]}  Kd6 {[%clk 0:00:14]} 35. g3 {[%clk 0:00:26]}  Nh5 {[%clk 0:00:14]} 36. Kf3 {[%clk 0:00:25]}  Ke5 {[%clk 0:00:13]} 37. g4 {[%clk 0:00:23]}  Nf6 {[%clk 0:00:14]} 38. Bc6 {[%clk 0:00:22]}  Kd6 {[%clk 0:00:14]} 39. Bb7 {[%clk 0:00:21]}  Nd7 {[%clk 0:00:14]} 40. Kf4 {[%clk 0:00:18]}  f6 {[%clk 0:00:13]} 41. a3 {[%clk 0:00:18]}  Ne5 {[%clk 0:00:14]} 42. Be4 {[%clk 0:00:16]}  c4 {[%clk 0:00:14]} 43. g5 {[%clk 0:00:15]}  Nd3+ {[%clk 0:00:13]} 44. Bxd3 {[%clk 0:00:12]}  cxd3 {[%clk 0:00:14]} 45. gxf6 {[%clk 0:00:12]}  gxf6 {[%clk 0:00:15]} 46. Ke3 {[%clk 0:00:12]}  Ke5 {[%clk 0:00:15]} 47. Kxd3 {[%clk 0:00:13]}  Kxf5 {[%clk 0:00:16]} 48. Ke3 {[%clk 0:00:13]}  Ke5 {[%clk 0:00:17]} 0-1


[Site "https://www.chess.com"]

[Event "Titled Tuesday Blitz February 22 Early 2022"]
[White "Berezin, Viktor"]
[Black "Guseva, Marina"]
[WhiteFideId "14107872"]
[BlackFideId "4149351"]
[WhiteElo "2310"]
[BlackElo "2232"]
[Result "1-0"]
[Round "08"]
[TimeControl "180+1"]
[Date "2022.02.22"]
[WhiteClock "0:00:06"]
[BlackClock "0:00:01"]

1. d4 {[%clk 0:02:46]}  d5 {[%clk 0:02:58]} 2. c4 {[%clk 0:02:45]}  c6 {[%clk 0:02:58]} 3. Nf3 {[%clk 0:02:44]}  Nf6 {[%clk 0:02:57]} 4. g3 {[%clk 0:02:43]}  dxc4 {[%clk 0:02:31]} 5. Qc2 {[%clk 0:02:40]}  b5 {[%clk 0:02:27]} 6. a4 {[%clk 0:02:39]}  Bb7 {[%clk 0:02:24]} 7. Bg2 {[%clk 0:02:38]}  a6 {[%clk 0:02:23]} 8. O-O {[%clk 0:02:37]}  e6 {[%clk 0:02:22]} 9. b3 {[%clk 0:02:36]}  cxb3 {[%clk 0:02:21]} 10. Qxb3 {[%clk 0:02:37]}  Nbd7 {[%clk 0:02:18]} 11. Nbd2 {[%clk 0:02:32]}  Be7 {[%clk 0:02:16]} 12. e4 {[%clk 0:02:31]}  O-O {[%clk 0:02:15]} 13. Bb2 {[%clk 0:02:31]}  Nb6 {[%clk 0:02:01]} 14. a5 {[%clk 0:02:24]}  Nbd7 {[%clk 0:01:43]} 15. e5 {[%clk 0:02:21]}  Nd5 {[%clk 0:01:41]} 16. Ne4 {[%clk 0:02:20]}  c5 {[%clk 0:01:40]} 17. dxc5 {[%clk 0:02:15]}  Nxc5 {[%clk 0:01:38]} 18. Nxc5 {[%clk 0:02:15]}  Bxc5 {[%clk 0:01:38]} 19. Rfc1 {[%clk 0:02:15]}  Bb4 {[%clk 0:01:28]} 20. Nd4 {[%clk 0:01:58]}  Bxa5 {[%clk 0:01:26]} 21. Nc6 {[%clk 0:01:57]}  Bxc6 {[%clk 0:01:25]} 22. Rxc6 {[%clk 0:01:58]}  Bb6 {[%clk 0:01:24]} 23. Rd6 {[%clk 0:01:56]}  Qc7 {[%clk 0:01:22]} 24. Bxd5 {[%clk 0:01:49]}  exd5 {[%clk 0:01:22]} 25. Rd1 {[%clk 0:01:49]}  Qa7 {[%clk 0:01:19]} 26. Rd2 {[%clk 0:01:31]}  Rad8 {[%clk 0:01:15]} 27. Qxd5 {[%clk 0:01:25]}  h6 {[%clk 0:01:10]} 28. e6 {[%clk 0:01:24]}  Rxd6 {[%clk 0:01:09]} 29. Qxd6 {[%clk 0:01:19]}  fxe6 {[%clk 0:00:24]} 30. Qxe6+ {[%clk 0:01:17]}  Rf7 {[%clk 0:00:21]} 31. Kg2 {[%clk 0:00:57]}  Qb7+ {[%clk 0:00:19]} 32. Kh3 {[%clk 0:00:52]}  Bc5 {[%clk 0:00:16]} 33. f4 {[%clk 0:00:44]}  Bf8 {[%clk 0:00:14]} 34. Rd8 {[%clk 0:00:43]}  Qe7 {[%clk 0:00:13]} 35. Qd5 {[%clk 0:00:20]}  b4 {[%clk 0:00:12]} 36. f5 {[%clk 0:00:12]}  Qb7 {[%clk 0:00:09]} 37. Qe6 {[%clk 0:00:11]}  Qf3 {[%clk 0:00:06]} 38. f6 {[%clk 0:00:07]}  Qh5+ {[%clk 0:00:05]} 39. Kg2 {[%clk 0:00:07]}  Kh7 {[%clk 0:00:01]} 40. fxg7 {[%clk 0:00:06]} 1-0


[Site "https://www.chess.com"]

[Event "Titled Tuesday Blitz February 22 Early 2022"]
[White "Borisova, Ekaterina"]
[Black "Hess, Robert"]
[WhiteFideId "34124184"]
[BlackFideId "2022036"]
[WhiteElo "2581"]
[BlackElo "2791"]
[Result "0-1"]
[Round "08"]
[TimeControl "180+1"]
[Date "2022.02.22"]
[WhiteClock "0:00:01"]
[BlackClock "0:00:40"]

1. d4 {[%clk 0:03:00]}  g6 {[%clk 0:02:59]} 2. e4 {[%clk 0:03:00]}  Bg7 {[%clk 0:03:00]} 3. Nc3 {[%clk 0:02:59]}  d6 {[%clk 0:02:59]} 4. Be3 {[%clk 0:02:59]}  a6 {[%clk 0:03:00]} 5. a4 {[%clk 0:02:59]}  e6 {[%clk 0:03:00]} 6. Qd2 {[%clk 0:02:59]}  h6 {[%clk 0:03:00]} 7. O-O-O {[%clk 0:02:58]}  Ne7 {[%clk 0:03:00]} 8. Kb1 {[%clk 0:02:58]}  Nd7 {[%clk 0:02:59]} 9. h4 {[%clk 0:02:58]}  b5 {[%clk 0:02:59]} 10. h5 {[%clk 0:02:58]}  g5 {[%clk 0:02:50]} 11. f4 {[%clk 0:02:57]}  gxf4 {[%clk 0:02:50]} 12. Bxf4 {[%clk 0:02:57]}  Bb7 {[%clk 0:02:38]} 13. Nf3 {[%clk 0:02:24]}  b4 {[%clk 0:02:36]} 14. Na2 {[%clk 0:02:22]}  Bxe4 {[%clk 0:02:30]} 15. Nxb4 {[%clk 0:02:18]}  a5 {[%clk 0:02:21]} 16. Na2 {[%clk 0:02:04]}  Qb8 {[%clk 0:02:08]} 17. Bd3 {[%clk 0:02:00]}  Bc6 {[%clk 0:02:01]} 18. Nc3 {[%clk 0:01:51]}  Qb4 {[%clk 0:01:57]} 19. Bb5 {[%clk 0:01:46]}  Rb8 {[%clk 0:01:51]} 20. b3 {[%clk 0:01:43]}  Nd5 {[%clk 0:01:05]} 21. Nxd5 {[%clk 0:01:25]}  Bxd5 {[%clk 0:01:06]} 22. Qxb4 {[%clk 0:01:09]}  axb4 {[%clk 0:01:07]} 23. Rhe1 {[%clk 0:00:57]}  Ke7 {[%clk 0:01:00]} 24. Re2 {[%clk 0:00:45]}  Nf6 {[%clk 0:00:58]} 25. Rh1 {[%clk 0:00:37]}  Ne4 {[%clk 0:00:58]} 26. Bd2 {[%clk 0:00:21]}  Ng3 {[%clk 0:00:51]} 27. Rh3 {[%clk 0:00:10]}  Nxe2 {[%clk 0:00:50]} 28. Bxe2 {[%clk 0:00:11]}  Bxf3 {[%clk 0:00:46]} 29. Bxf3 {[%clk 0:00:09]}  Bxd4 {[%clk 0:00:46]} 30. Rh4 {[%clk 0:00:06]}  c5 {[%clk 0:00:45]} 31. Re4 {[%clk 0:00:06]}  f5 {[%clk 0:00:44]} 32. Re2 {[%clk 0:00:06]}  e5 {[%clk 0:00:45]} 33. Bd5 {[%clk 0:00:06]}  e4 {[%clk 0:00:45]} 34. g4 {[%clk 0:00:03]}  Rhg8 {[%clk 0:00:42]} 35. gxf5 {[%clk 0:00:01]}  Rg1+ {[%clk 0:00:42]} 36. Bc1 {[%clk 0:00:01]}  e3 {[%clk 0:00:40]} 0-1


[Site "https://www.chess.com"]